bitfinex-derivatives/quotes_SOLF0:USTF0_20260314
["timestamp","ask_amount","ask_price","bid_price","bid_amount"]
[1773518103438,9.27491111,86.975,86.935,4.74783334]
[1773518103642,10.345,86.979,86.935,4.74783334]
[1773518103837,9.27490868,86.978,86.935,4.74783334]
[1773518104038,9.27490868,86.977,86.935,4.74783334]
[1773518104242,9.27490868,86.976,86.935,4.74783334]
[1773518104441,9.27490868,86.975,86.935,4.74783334]
[1773518104647,10.345,86.979,86.935,4.74783334]
[1773518104946,9.27490992,86.978,86.935,4.74783334]
[1773518105148,9.27490992,86.977,86.935,4.74783334]
[1773518105347,9.27490992,86.976,86.935,4.74783334]
[1773518105647,9.27490992,86.975,86.935,4.74783334]
[1773518105848,10.345,86.979,86.935,4.74783334]
[1773518106149,9.27491482,86.978,86.935,4.74783334]
[1773518106347,9.27491482,86.977,86.935,4.74783334]
[1773518106547,9.27491482,86.976,86.935,4.74783334]
[1773518106748,9.27491482,86.975,86.935,4.74783334]
[1773518106947,10.345,86.979,86.935,4.74783334]
[1773518107249,9.27492343,86.978,86.935,4.74783334]
[1773518107448,9.27492343,86.977,86.935,4.74783334]
[1773518107649,9.27492343,86.976,86.935,4.74783334]
[1773518107850,9.27492343,86.975,86.935,4.74783334]
[1773518108047,10.345,86.979,86.935,4.74783334]
[1773518108248,9.27493581,86.978,86.935,4.74783334]
[1773518108546,9.27493581,86.977,86.935,4.74783334]
[1773518108748,9.27493581,86.976,86.935,4.74783334]
[1773518108950,9.27493581,86.975,86.935,4.74783334]
[1773518109150,10.345,86.979,86.935,4.74783334]
[1773518109449,9.27497221,86.978,86.935,4.74783334]
[1773518109650,9.27497221,86.977,86.935,4.74783334]
[1773518109851,9.27497221,86.976,86.935,4.74783334]
[1773518110047,9.27497221,86.975,86.935,4.74783334]
[1773518110249,10.345,86.979,86.935,4.74783334]
[1773518110451,9.27499649,86.978,86.935,4.74783334]
[1773518110751,10.345,86.979,86.935,4.74783334]
[1773518110752,9.27499649,86.977,86.935,4.74783334]
[1773518110951,9.27499649,86.976,86.935,4.74783334]
[1773518111150,9.27499649,86.975,86.935,4.74783334]
[1773518111351,10.345,86.979,86.935,4.74783334]
[1773518111551,45.7,86.981,86.92,3.12263096]
[1773518111552,9.27502507,86.978,86.938,4.74397622]
[1773518111752,9.27502507,86.977,86.938,4.74397622]
[1773518111952,9.27502507,86.976,86.938,4.74397622]
[1773518112152,45.7,86.981,86.938,4.74397622]
[1773518112353,9.27493001,86.98,86.938,4.74397622]
[1773518112554,9.27493001,86.979,86.94,4.74399068]
[1773518112754,9.27493001,86.978,86.94,4.74399068]
[1773518112954,9.27493001,86.977,86.94,4.74399068]
[1773518113153,45.7,86.981,86.94,4.74399068]
[1773518113356,9.2747955,86.98,86.94,4.74399068]
[1773518113555,9.2747955,86.979,86.94,4.74399068]
[1773518113748,9.2747955,86.978,86.94,4.74399068]
[1773518113947,9.2747955,86.977,86.94,4.74399068]
[1773518114147,45.7,86.981,86.94,4.74399068]
[1773518114347,9.27474629,86.98,86.94,4.74399068]
[1773518114552,9.27474629,86.979,86.94,4.74399068]
[1773518114747,9.27474629,86.978,86.943,4.74549366]
[1773518114952,9.27474629,86.977,86.943,4.74549366]
[1773518115154,45.7,86.981,86.943,4.74549366]
[1773518115352,9.27464212,86.98,86.943,4.74549366]
[1773518115651,9.27464212,86.979,86.943,4.74549366]
[1773518115960,9.27464212,86.978,86.943,4.74549366]
[1773518116162,9.27464212,86.977,86.943,4.74549366]
[1773518116356,45.7,86.981,86.943,4.74549366]
[1773518116562,9.27458467,86.98,86.943,4.74549366]
[1773518116762,9.27458467,86.979,86.943,4.74549366]
[1773518116962,9.27458467,86.978,86.943,4.74549366]
[1773518117162,9.27458467,86.977,86.943,4.74549366]
[1773518117363,45.7,86.981,86.943,4.74549366]
[1773518117566,9.27451686,86.98,86.943,4.74549366]
[1773518117864,9.27451686,86.979,86.943,4.74549366]
[1773518118063,9.27451686,86.978,86.943,4.74549366]
[1773518118264,9.27451686,86.977,86.943,4.74549366]
[1773518118469,45.7,86.981,86.943,4.74549366]
[1773518118666,9.27445168,86.98,86.943,4.74549366]
[1773518118870,9.27445168,86.979,86.943,4.74549366]
[1773518119066,9.27445168,86.978,86.943,4.74549366]
[1773518119266,9.27445168,86.977,86.943,4.74549366]
[1773518119460,45.7,86.981,86.943,4.74549366]
[1773518119660,9.27439598,86.98,86.943,4.74549366]
[1773518119866,9.27439598,86.979,86.943,4.74549366]
[1773518120067,9.27439598,86.978,86.943,4.74549366]
[1773518120267,9.27439598,86.977,86.943,4.74549366]
[1773518120465,45.7,86.981,86.943,4.74549366]
[1773518120666,9.27434078,86.98,86.943,4.74549366]
[1773518120868,9.27434078,86.979,86.943,4.74549366]
[1773518121169,9.27434078,86.978,86.943,4.74549366]
[1773518121368,9.27434078,86.977,86.943,4.74549366]
[1773518121565,45.7,86.981,86.943,4.74549366]
[1773518121770,9.27428769,86.98,86.943,4.74549366]
[1773518122071,9.27428769,86.979,86.943,4.74549366]
[1773518122270,9.27428769,86.978,86.943,4.74549366]
[1773518122468,9.27428769,86.977,86.943,4.74549366]
[1773518122671,45.7,86.981,86.943,4.74549366]
[1773518122871,9.27423995,86.98,86.943,4.74549366]
[1773518123068,9.27423995,86.979,86.943,4.74549366]
[1773518123369,9.27423995,86.978,86.943,4.74549366]
[1773518123570,9.27423995,86.977,86.943,4.74549366]
[1773518123872,45.7,86.981,86.943,4.74549366]
[1773518124170,9.27419267,86.98,86.943,4.74549366]
[1773518124371,9.27419267,86.979,86.943,4.74549366]
[1773518124569,9.27419267,86.978,86.943,4.74549366]
[1773518124772,9.27419267,86.977,86.943,4.74549366]
[1773518124973,45.7,86.981,86.943,4.74549366]
[1773518125270,9.27461353,86.98,86.943,4.74549366]
[1773518125476,9.27461353,86.979,86.943,4.74549366]
[1773518125667,9.27461353,86.978,86.943,4.74549366]
[1773518125864,9.27461353,86.977,86.943,4.74549366]
[1773518126069,45.7,86.981,86.946,4.71287824]
[1773518126275,9.2745305,86.98,86.946,4.71287824]
[1773518126574,9.2745305,86.979,86.946,4.71287824]
[1773518126775,9.2745305,86.978,86.946,4.71287824]
[1773518127069,9.2745305,86.977,86.946,4.71287824]
[1773518127272,45.7,86.981,86.946,4.71287824]
[1773518127469,9.27445223,86.98,86.946,4.71287824]
[1773518127773,9.27445223,86.979,86.946,4.71287824]
[1773518127972,9.27445223,86.978,86.946,4.71287824]
[1773518128174,9.27445223,86.977,86.946,4.71287824]
[1773518128368,45.7,86.981,86.946,4.71287824]
[1773518128570,9.27440162,86.98,86.946,4.71287824]
[1773518128772,9.27440162,86.979,86.946,4.71287824]
[1773518128973,9.27440162,86.978,86.946,4.71287824]
[1773518129174,9.27440162,86.977,86.946,4.71287824]
[1773518129369,45.7,86.981,86.946,4.71287824]
[1773518129574,9.27435828,86.98,86.946,4.71287824]
[1773518129776,9.27435828,86.979,86.946,4.71287824]
[1773518129972,9.27435828,86.978,86.946,4.71287824]
[1773518130170,9.27435828,86.977,86.946,4.71287824]
[1773518130372,45.7,86.981,86.946,4.71287824]
[1773518130674,9.27432184,86.98,86.946,4.71287824]
[1773518130875,9.27432184,86.979,86.946,4.71287824]
[1773518131076,9.27432184,86.978,86.946,4.71287824]
[1773518131375,9.27432184,86.977,86.946,4.71287824]
[1773518131571,45.7,86.981,86.946,4.71287824]
[1773518131871,9.27429201,86.98,86.946,4.71287824]
[1773518132074,9.27429201,86.979,86.946,4.71287824]
[1773518132276,9.27429201,86.978,86.946,4.71287824]
[1773518132480,9.27429201,86.977,86.946,4.71287824]
[1773518132680,45.7,86.981,86.946,4.71287824]
[1773518132871,9.27426855,86.98,86.946,4.71287824]
[1773518133072,9.27426855,86.979,86.946,4.71287824]
[1773518133278,9.27426855,86.978,86.946,4.71287824]
[1773518133477,9.27426855,86.977,86.946,4.71287824]
[1773518133782,45.7,86.981,86.946,4.71287824]
[1773518133973,9.2742525,86.98,86.946,4.71287824]
[1773518134177,9.2742525,86.979,86.946,4.71287824]
[1773518134377,9.2742525,86.978,86.946,4.71287824]
[1773518134578,9.2742525,86.977,86.946,4.71287824]
[1773518134778,45.7,86.981,86.946,4.71287824]
[1773518134981,9.27424393,86.98,86.946,4.71287824]
[1773518135180,9.27424393,86.979,86.946,4.71287824]
[1773518135381,45.7,86.981,86.946,4.71287824]
[1773518135382,9.27424393,86.978,86.946,4.71287824]
[1773518135582,9.27424393,86.977,86.946,4.71287824]
[1773518135785,45.7,86.981,86.946,4.71287824]
[1773518136078,9.2742416,86.98,86.946,4.71287824]
[1773518136289,3.12257774,86.96,86.934,265.42066232]
[1773518136486,9.2742416,86.959,86.914,4.7230758]
[1773518136686,9.2742416,86.958,86.901,4.7230758]
[1773518136883,3.12257774,86.96,86.901,4.7230758]
[1773518136884,3.12257774,86.95,86.901,4.7230758]
[1773518137384,3.12257774,86.96,86.901,4.7230758]
[1773518137585,10.348,86.957,86.904,4.66603813]
[1773518140289,10.348,86.957,86.906,4.66524116]
[1773518144787,10.348,86.957,86.907,10.354]
[1773518144988,10.348,86.957,86.908,4.66647579]
[1773518155393,10.348,86.957,86.91,4.66721929]
[1773518157294,3.12257774,86.95,86.91,4.66721929]
[1773518162699,3.12257774,86.94,86.9,4.64821165]
[1773518163597,13.47157774,86.95,86.9,4.64821165]
[1773518174604,10.35,86.942,86.9,4.64821165]
[1773518175604,3.12257774,86.94,86.9,4.64821165]
[1773518175806,10.35,86.942,86.9,4.64821165]
[1773518187215,10.349,86.95,86.9,4.64821165]
[1773518187514,9.26276755,86.949,86.901,4.67231109]
[1773518187715,9.26276755,86.948,86.901,4.67231109]
[1773518188008,9.26276755,86.947,86.901,4.67231109]
[1773518188207,10.349,86.95,86.901,4.67231109]
[1773518188405,9.26290678,86.949,86.901,4.67231109]
[1773518188605,9.26290678,86.948,86.901,4.67231109]
[1773518188806,9.26290678,86.947,86.901,4.67231109]
[1773518189006,10.349,86.95,86.901,4.67231109]
[1773518189216,9.2629007,86.949,86.901,4.67231109]
[1773518189415,9.2629007,86.948,86.901,4.67231109]
[1773518189624,9.2629007,86.947,86.901,4.67231109]
[1773518189818,10.349,86.95,86.901,4.67231109]
[1773518190017,9.26309848,86.949,86.901,4.67231109]
[1773518190216,9.26309848,86.948,86.901,4.67231109]
[1773518190421,9.26309848,86.947,86.901,4.67231109]
[1773518190611,10.349,86.95,86.901,4.67231109]
[1773518190817,9.26334577,86.949,86.901,4.67231109]
[1773518191020,9.26334577,86.948,86.901,4.67231109]
[1773518191217,9.26334577,86.947,86.901,4.67231109]
[1773518191519,10.349,86.95,86.901,4.67231109]
[1773518191722,9.26364825,86.949,86.901,4.67231109]
[1773518191916,9.26364825,86.948,86.901,4.67231109]
[1773518192221,9.26364825,86.947,86.901,4.67231109]
[1773518192415,10.349,86.95,86.901,4.67231109]
[1773518192719,9.26400703,86.949,86.901,4.67231109]
[1773518192920,9.26400703,86.948,86.901,4.67231109]
[1773518193120,9.26400703,86.947,86.901,4.67231109]
[1773518193321,10.349,86.95,86.901,4.67231109]
[1773518193520,9.26442643,86.949,86.903,4.68486818]
[1773518193722,9.26442643,86.948,86.903,4.68486818]
[1773518193919,9.26442643,86.947,86.903,4.68486818]
[1773518194120,10.348,86.958,86.903,4.68486818]
[1773518194322,9.26476725,86.957,86.903,4.68486818]
[1773518194523,9.26476725,86.956,86.904,10.354]
[1773518194726,9.26476725,86.955,86.905,4.68934212]
[1773518194923,9.26476725,86.954,86.905,4.68934212]
[1773518195124,9.26476725,86.953,86.905,4.68934212]
[1773518195420,9.26476725,86.952,86.905,4.68934212]
[1773518195723,9.26476725,86.951,86.905,4.68934212]
[1773518195923,9.26476725,86.95,86.905,4.68934212]
[1773518196114,9.26476725,86.949,86.905,4.68934212]
[1773518196316,9.26476725,86.948,86.905,4.68934212]
[1773518196523,9.26476725,86.947,86.905,4.68934212]
[1773518196724,9.26476725,86.946,86.905,4.68934212]
[1773518197025,10.348,86.958,86.905,4.68934212]
[1773518197223,9.26612667,86.957,86.905,4.68934212]
[1773518197416,9.26612667,86.956,86.905,4.68934212]
[1773518197621,9.26612667,86.955,86.905,4.68934212]
[1773518197821,9.26612667,86.954,86.905,4.68934212]
[1773518198122,9.26612667,86.953,86.905,4.68934212]
[1773518198422,9.26612667,86.952,86.905,4.68934212]
[1773518198619,9.26612667,86.951,86.905,4.68934212]
[1773518198818,9.26612667,86.95,86.905,4.68934212]
[1773518199016,9.26612667,86.949,86.905,4.68934212]
[1773518199220,9.26612667,86.948,86.905,4.68934212]
[1773518199429,9.26612667,86.947,86.905,4.68934212]
[1773518199621,9.26612667,86.946,86.905,4.68934212]
[1773518199821,9.26612667,86.945,86.905,4.68934212]
[1773518200021,10.348,86.958,86.905,4.68934212]
[1773518200223,18.47642093,86.957,86.905,4.68934212]
[1773518200423,18.47642093,86.956,86.905,4.68934212]
[1773518200624,9.2685958,86.955,86.905,4.68934212]
[1773518200923,9.2685958,86.954,86.905,4.68934212]
[1773518201124,10.348,86.958,86.905,4.68934212]
[1773518201125,9.2685958,86.953,86.905,4.68934212]
[1773518201325,9.2685958,86.952,86.905,4.68934212]
[1773518201526,9.2685958,86.951,86.905,4.68934212]
[1773518201727,9.2685958,86.95,86.905,4.68934212]
[1773518201927,9.2685958,86.949,86.905,4.68934212]
[1773518202125,9.2685958,86.948,86.905,4.68934212]
[1773518202428,10.76911327,86.964,86.905,4.68934212]
[1773518202429,9.2685958,86.947,86.905,4.68934212]
[1773518202623,9.2685958,86.946,86.905,4.68934212]
[1773518202824,9.2685958,86.945,86.905,4.68934212]
[1773518203024,9.2685958,86.944,86.905,4.68934212]
[1773518203325,9.2685958,86.943,86.905,4.68934212]
[1773518203526,13.47424655,86.95,86.905,4.68934212]
[1773518203731,9.27398073,86.949,86.905,4.68934212]
[1773518203928,9.27398073,86.948,86.905,4.68934212]
[1773518204121,9.27398073,86.947,86.905,4.68934212]
[1773518204330,9.27398073,86.946,86.905,4.68934212]
[1773518204623,9.27398073,86.945,86.905,4.68934212]
[1773518204822,9.27398073,86.944,86.905,4.68934212]
[1773518205026,9.27398073,86.943,86.905,4.68934212]
[1773518205228,9.27398073,86.942,86.905,4.68934212]
[1773518205424,13.47424655,86.95,86.905,4.68934212]
[1773518205626,9.27622314,86.949,86.905,4.68934212]
[1773518205825,9.27622314,86.948,86.905,4.68934212]
[1773518206028,9.27622314,86.947,86.905,4.68934212]
[1773518206335,9.27622314,86.946,86.905,4.68934212]
[1773518206531,9.27622314,86.945,86.905,4.68934212]
[1773518206732,9.27622314,86.944,86.905,4.68934212]
[1773518206931,9.27622314,86.943,86.905,4.68934212]
[1773518207233,9.27622314,86.942,86.905,4.68934212]
[1773518207428,9.27622314,86.941,86.905,4.68934212]
[1773518207733,9.27622314,86.94,86.905,4.68934212]
[1773518207933,13.47424655,86.95,86.905,4.68934212]
[1773518208133,9.28238858,86.949,86.905,4.68934212]
[1773518208333,9.28238858,86.948,86.905,4.68934212]
[1773518208534,9.28238858,86.947,86.905,4.68934212]
[1773518208729,9.28238858,86.946,86.905,4.68934212]
[1773518208927,9.28238858,86.945,86.905,4.68934212]
[1773518209132,9.28238858,86.944,86.905,4.68934212]
[1773518209432,9.28238858,86.943,86.905,4.68934212]
[1773518209634,9.28238858,86.942,86.905,4.68934212]
[1773518209936,9.28238858,86.941,86.905,4.68934212]
[1773518210133,9.28238858,86.94,86.905,4.68934212]
[1773518210335,9.28238858,86.939,86.905,4.68934212]
[1773518210635,9.28238858,86.938,86.905,4.68934212]
[1773518210834,13.47424655,86.95,86.905,4.68934212]
[1773518211034,18.50391099,86.949,86.905,4.68934212]
[1773518211239,9.28235264,86.948,86.905,4.68934212]
[1773518211436,9.28235264,86.947,86.905,4.68934212]
[1773518211635,9.28235264,86.946,86.905,4.68934212]
[1773518211838,9.28235264,86.945,86.905,4.68934212]
[1773518212034,9.28235264,86.944,86.905,4.68934212]
[1773518212234,9.28235264,86.943,86.905,4.68934212]
[1773518212435,9.28235264,86.942,86.905,4.68934212]
[1773518212635,9.28235264,86.941,86.905,4.68934212]
[1773518212835,9.28235264,86.94,86.905,4.68934212]
[1773518213135,9.28235264,86.939,86.905,4.68934212]
[1773518213332,9.28235264,86.938,86.905,4.68934212]
[1773518213533,13.47424655,86.95,86.905,4.68934212]
[1773518213737,18.50347561,86.949,86.905,4.68934212]
[1773518213938,9.28213548,86.948,86.905,4.68934212]
[1773518214139,9.28213548,86.947,86.905,4.68934212]
[1773518214338,9.28213548,86.946,86.905,4.68934212]
[1773518214539,9.28213548,86.945,86.905,4.68934212]
[1773518214742,9.28213548,86.944,86.905,4.68934212]
[1773518214941,9.28213548,86.943,86.905,4.68934212]
[1773518215141,9.28213548,86.942,86.905,4.68934212]
[1773518215340,9.28213548,86.941,86.905,4.68934212]
[1773518215641,9.28213548,86.94,86.905,4.68934212]
[1773518215837,9.28213548,86.939,86.905,4.68934212]
[1773518216041,9.28213548,86.938,86.905,4.68934212]
[1773518216242,9.28213548,86.937,86.905,4.68934212]
[1773518216442,10.349,86.95,86.905,4.68934212]
[1773518216742,18.50343967,86.949,86.905,4.68934212]
[1773518216942,18.50343967,86.948,86.905,4.68934212]
[1773518217137,9.28211775,86.947,86.905,4.68934212]
[1773518217334,9.28211775,86.946,86.905,4.68934212]
[1773518217540,9.28211775,86.945,86.905,4.68934212]
[1773518217741,9.28211775,86.944,86.905,4.68934212]
[1773518217942,9.28211775,86.943,86.905,4.68934212]
[1773518218141,9.28211775,86.942,86.905,4.68934212]
[1773518218338,9.28211775,86.941,86.905,4.68934212]
[1773518218541,9.28211775,86.94,86.905,4.68934212]
[1773518218844,9.28211775,86.939,86.905,4.68934212]
[1773518219038,9.28211775,86.938,86.905,4.68934212]
[1773518219242,9.28211775,86.937,86.905,4.68934212]
[1773518219542,10.349,86.95,86.905,4.68934212]
[1773518219743,18.50270424,86.949,86.905,4.68934212]
[1773518219943,18.50270424,86.948,86.905,4.68934212]
[1773518220146,9.28174958,86.947,86.905,4.68934212]
[1773518220347,9.28174958,86.946,86.905,4.68934212]
[1773518220546,9.28174958,86.945,86.905,4.68934212]
[1773518220740,9.28174958,86.944,86.905,4.68934212]
[1773518220939,9.28174958,86.943,86.905,4.68934212]
[1773518221138,9.28174958,86.942,86.905,4.68934212]
[1773518221348,9.28174958,86.941,86.905,4.68934212]
[1773518221547,9.28174958,86.94,86.905,4.68934212]
[1773518221750,9.28174958,86.939,86.905,4.68934212]
[1773518221949,9.28175785,86.938,86.896,4.6887146]
[1773518222148,10.35,86.942,86.896,4.6887146]
[1773518222351,9.28138172,86.941,86.896,4.6887146]
[1773518222544,9.28138172,86.94,86.896,4.6887146]
[1773518222750,9.28138172,86.939,86.896,4.6887146]
[1773518222951,9.28138172,86.938,86.896,4.6887146]
[1773518223149,13.47424655,86.95,86.896,4.6887146]
[1773518223352,18.50111502,86.949,86.896,4.6887146]
[1773518223554,18.50111502,86.948,86.896,4.6887146]
[1773518223851,10.349,86.945,86.896,4.6887146]
[1773518224053,9.28095123,86.944,86.896,4.6887146]
[1773518224252,9.28095123,86.943,86.896,4.6887146]
[1773518224451,9.28095123,86.942,86.896,4.6887146]
[1773518224651,10.349,86.945,86.896,4.6887146]
[1773518224652,9.28095123,86.941,86.896,4.6887146]
[1773518224855,9.28095123,86.94,86.896,4.6887146]
[1773518225055,9.28095123,86.939,86.896,4.6887146]
[1773518225349,9.28095123,86.938,86.896,4.6887146]
[1773518225555,10.349,86.945,86.896,4.6887146]
[1773518225757,9.28025937,86.944,86.896,4.6887146]
[1773518226054,9.28025937,86.943,86.896,4.6887146]
[1773518226247,9.28025937,86.942,86.896,4.6887146]
[1773518226449,9.28025937,86.941,86.896,4.6887146]
[1773518226651,9.28025937,86.94,86.896,4.6887146]
[1773518226951,9.28025937,86.939,86.896,4.6887146]
[1773518227249,9.28025937,86.938,86.896,4.6887146]
[1773518227450,10.349,86.945,86.896,4.6887146]
[1773518227653,9.279719,86.944,86.896,4.6887146]
[1773518227853,9.279719,86.943,86.896,4.6887146]
[1773518228048,9.279719,86.942,86.896,4.6887146]
[1773518228247,9.279719,86.941,86.896,4.6887146]
[1773518228448,9.279719,86.94,86.896,4.6887146]
[1773518228645,9.279719,86.939,86.896,4.6887146]
[1773518228856,9.279719,86.938,86.896,4.6887146]
[1773518229155,10.349,86.945,86.896,4.6887146]
[1773518229353,9.27929285,86.944,86.896,4.6887146]
[1773518229554,9.27929285,86.943,86.896,4.6887146]
[1773518229749,9.27929285,86.942,86.896,4.6887146]
[1773518230053,10.349,86.945,86.896,4.6887146]
[1773518230054,9.27929285,86.941,86.896,4.6887146]
[1773518230253,9.27929285,86.94,86.896,4.6887146]
[1773518230452,9.27929285,86.939,86.896,4.6887146]
[1773518230656,9.27929285,86.938,86.896,4.6887146]
[1773518230854,9.27929285,86.937,86.896,4.6887146]
[1773518231057,10.349,86.945,86.896,4.6887146]
[1773518231356,9.27899305,86.944,86.896,4.6887146]
[1773518231553,9.27899305,86.943,86.896,4.6887146]
[1773518231755,9.27899305,86.942,86.896,4.6887146]
[1773518231950,9.27899305,86.941,86.896,4.6887146]
[1773518232148,9.27899305,86.94,86.896,4.6887146]
[1773518232450,9.27899305,86.939,86.896,4.6887146]
[1773518232652,9.27899305,86.938,86.896,4.6887146]
[1773518232852,9.27899305,86.937,86.896,4.6887146]
[1773518233151,10.349,86.945,86.896,4.6887146]
[1773518233349,9.27870844,86.944,86.896,4.6887146]
[1773518233555,9.27870844,86.943,86.896,4.6887146]
[1773518233857,9.27870844,86.942,86.896,4.6887146]
[1773518234157,9.27870844,86.941,86.896,4.6887146]
[1773518234457,9.27870844,86.94,86.896,4.6887146]
[1773518234657,9.27870844,86.939,86.896,4.6887146]
[1773518234857,9.27870844,86.938,86.896,4.6887146]
[1773518235058,9.27870844,86.937,86.896,4.6887146]
[1773518235261,10.349,86.945,86.896,4.6887146]
[1773518235460,9.27855495,86.944,86.896,4.6887146]
[1773518235660,9.27855495,86.943,86.896,4.6887146]
[1773518235862,9.27855495,86.942,86.896,4.6887146]
[1773518236161,9.27855495,86.941,86.896,4.6887146]
[1773518236361,9.27855495,86.94,86.896,4.6887146]
[1773518236562,9.27855495,86.939,86.896,4.6887146]
[1773518236761,9.27855495,86.938,86.896,4.6887146]
[1773518236962,9.27855495,86.937,86.896,4.6887146]
[1773518237164,10.349,86.945,86.896,4.6887146]
[1773518237363,9.27846928,86.944,86.896,4.6887146]
[1773518237564,9.27846928,86.943,86.896,4.6887146]
[1773518237863,9.27846928,86.942,86.896,4.6887146]
[1773518238064,9.27846928,86.941,86.896,4.6887146]
[1773518238265,9.27846928,86.94,86.896,4.6887146]
[1773518238458,9.27846928,86.939,86.896,4.6887146]
[1773518238662,9.27846928,86.938,86.896,4.6887146]
[1773518238860,9.27846928,86.937,86.896,4.6887146]
[1773518239167,10.349,86.945,86.896,4.6887146]
[1773518239357,9.27848996,86.944,86.896,4.6887146]
[1773518239666,9.27848996,86.943,86.896,4.6887146]
[1773518239865,9.27848996,86.942,86.896,4.6887146]
[1773518240067,9.27848996,86.941,86.896,4.6887146]
[1773518240373,9.27848996,86.94,86.896,4.6887146]
[1773518240669,9.27848996,86.939,86.896,4.6887146]
[1773518240867,9.27848996,86.938,86.896,4.6887146]
[1773518241170,9.27848996,86.937,86.896,4.6887146]
[1773518241467,10.349,86.945,86.896,4.6887146]
[1773518241668,9.27862144,86.944,86.896,4.6887146]
[1773518241860,9.27862144,86.943,86.896,4.6887146]
[1773518242064,9.27862144,86.942,86.896,4.6887146]
[1773518242364,9.27862144,86.941,86.896,4.6887146]
[1773518242564,9.27862144,86.94,86.896,4.6887146]
[1773518242766,9.27862144,86.939,86.896,4.6887146]
[1773518243064,9.27862144,86.938,86.896,4.6887146]
[1773518243266,9.27862144,86.937,86.896,4.6887146]
[1773518243466,10.349,86.945,86.896,4.6887146]
[1773518243667,10.35,86.943,86.896,4.6887146]
[1773518243965,9.27883471,86.942,86.896,4.6887146]
[1773518244165,9.27883471,86.941,86.896,4.6887146]
[1773518244367,9.27883471,86.94,86.896,4.6887146]
[1773518244667,9.27883471,86.939,86.896,4.6887146]
[1773518244868,9.27883471,86.938,86.896,4.6887146]
[1773518245068,9.27883471,86.937,86.896,4.6887146]
[1773518245267,9.27883471,86.936,86.896,4.6887146]
[1773518245469,10.35,86.943,86.896,4.6887146]
[1773518245664,9.29201607,86.942,86.896,4.6887146]
[1773518245872,9.29201607,86.941,86.896,4.6887146]
[1773518246070,9.29201607,86.94,86.896,4.6887146]
[1773518246270,9.29201607,86.939,86.896,4.6887146]
[1773518246567,9.29201607,86.938,86.896,4.6887146]
[1773518246771,9.29201607,86.937,86.896,4.6887146]
[1773518246968,9.29201607,86.936,86.896,4.6887146]
[1773518247170,10.35,86.943,86.896,4.6887146]
[1773518247363,9.2924288,86.942,86.896,4.6887146]
[1773518247563,9.2924288,86.941,86.896,4.6887146]
[1773518247771,9.2924288,86.94,86.896,4.6887146]
[1773518247972,9.2924288,86.939,86.896,4.6887146]
[1773518248168,9.2924288,86.938,86.896,4.6887146]
[1773518248364,9.2924288,86.937,86.896,4.6887146]
[1773518248571,9.2924288,86.936,86.896,4.6887146]
[1773518248772,10.35,86.943,86.896,4.6887146]
[1773518248973,9.29262127,86.942,86.896,4.6887146]
[1773518249271,9.29262127,86.941,86.896,4.6887146]
[1773518249571,9.29262127,86.94,86.896,4.6887146]
[1773518249772,9.29262127,86.939,86.896,4.6887146]
[1773518249973,9.29262127,86.938,86.896,4.6887146]
[1773518250174,9.29262127,86.937,86.896,4.6887146]
[1773518250375,9.29262127,86.936,86.896,4.6887146]
[1773518250571,10.35,86.943,86.896,4.6887146]
[1773518250879,9.29309265,86.942,86.896,4.6887146]
[1773518251073,9.29309265,86.941,86.896,4.6887146]
[1773518251370,9.29309265,86.94,86.896,4.6887146]
[1773518251671,9.29309265,86.939,86.896,4.6887146]
[1773518251971,9.29309265,86.938,86.896,4.6887146]
[1773518252276,9.29309265,86.937,86.896,4.6887146]
[1773518252473,9.29309265,86.936,86.896,4.6887146]
[1773518252676,10.35,86.943,86.896,4.6887146]
[1773518252976,9.29371661,86.942,86.896,4.6887146]
[1773518253169,9.29371661,86.941,86.896,4.6887146]
[1773518253377,9.29371661,86.94,86.896,4.6887146]
[1773518253565,9.29371661,86.939,86.896,4.6887146]
[1773518253767,9.29371661,86.938,86.896,4.6887146]
[1773518253969,9.29371661,86.937,86.896,4.6887146]
[1773518254173,9.29371661,86.936,86.896,4.6887146]
[1773518254379,9.29371661,86.935,86.896,4.6887146]
[1773518254578,10.35,86.943,86.896,4.6887146]
[1773518254780,9.2942662,86.942,86.896,4.6887146]
[1773518254977,9.2942662,86.941,86.896,4.6887146]
[1773518255279,9.2942662,86.94,86.896,4.6887146]
[1773518255471,9.2942662,86.939,86.896,4.6887146]
[1773518255674,9.2942662,86.938,86.896,4.6887146]
[1773518255875,9.2942662,86.937,86.896,4.6887146]
[1773518256077,9.2942662,86.936,86.896,4.6887146]
[1773518256277,9.2942662,86.935,86.896,4.6887146]
[1773518256576,10.35,86.943,86.896,4.6887146]
[1773518256773,9.29466799,86.942,86.896,4.6887146]
[1773518256978,9.29466799,86.941,86.896,4.6887146]
[1773518257176,9.29466799,86.94,86.896,4.6887146]
[1773518257480,9.29466799,86.939,86.896,4.6887146]
[1773518257675,9.29466799,86.938,86.896,4.6887146]
[1773518257881,9.29466799,86.937,86.896,4.6887146]
[1773518258080,9.29466799,86.936,86.896,4.6887146]